[Event "Titled Tuesday Blitz October 31 Early 2023"]
[White "Pinto, Daniel"]
[Black "Cueto, Jonny"]
[WhiteFideId "3303144"]
[BlackFideId "3300145"]
[WhiteElo "2453"]
[BlackElo "2239"]
[Result "1-0"]
[Round "3"]
[TimeControl "180+1"]
[Date "2023.10.31"]
[WhiteClock "0:00:03"]
[BlackClock "0:00:05"]
[Board "169"]

1. e4 {[%clk 0:03:00]}  e6 {[%clk 0:02:37]} 2. d4 {[%clk 0:02:59]}  d5 {[%clk 0:02:37]} 3. Nd2 {[%clk 0:02:42]}  Nc6 {[%clk 0:02:37]} 4. Ngf3 {[%clk 0:02:42]}  Nf6 {[%clk 0:02:37]} 5. e5 {[%clk 0:02:38]}  Nd7 {[%clk 0:02:37]} 6. c3 {[%clk 0:02:35]}  f6 {[%clk 0:02:36]} 7. exf6 {[%clk 0:02:33]}  Qxf6 {[%clk 0:02:37]} 8. Bd3 {[%clk 0:02:31]}  Bd6 {[%clk 0:02:37]} 9. Nf1 {[%clk 0:01:59]}  O-O {[%clk 0:02:30]} 10. Bg5 {[%clk 0:01:46]}  Qf7 {[%clk 0:02:28]} 11. Be3 {[%clk 0:01:47]}  Qf6 {[%clk 0:01:52]} 12. Ng3 {[%clk 0:01:41]}  e5 {[%clk 0:01:38]} 13. dxe5 {[%clk 0:01:35]}  Ndxe5 {[%clk 0:01:35]} 14. Nxe5 {[%clk 0:00:48]}  Nxe5 {[%clk 0:01:36]} 15. Be2 {[%clk 0:00:48]}  Nc4 {[%clk 0:01:22]} 16. Bxc4 {[%clk 0:00:24]}  dxc4 {[%clk 0:01:23]} 17. Ne4 {[%clk 0:00:22]}  Qe7 {[%clk 0:00:54]} 18. Nxd6 {[%clk 0:00:21]}  cxd6 {[%clk 0:00:55]} 19. Qd4 {[%clk 0:00:22]}  Be6 {[%clk 0:00:20]} 20. O-O {[%clk 0:00:18]}  Bf7 {[%clk 0:00:19]} 21. Rfe1 {[%clk 0:00:16]}  Qd7 {[%clk 0:00:10]} 22. Rad1 {[%clk 0:00:15]}  Rad8 {[%clk 0:00:04]} 23. Bg5 {[%clk 0:00:14]}  Rde8 {[%clk 0:00:05]} 24. Be3 {[%clk 0:00:09]}  Qe6 {[%clk 0:00:03]} 25. Qxd6 {[%clk 0:00:07]}  Qxd6 {[%clk 0:00:03]} 26. Rxd6 {[%clk 0:00:08]}  h6 {[%clk 0:00:03]} 27. f3 {[%clk 0:00:06]}  b5 {[%clk 0:00:03]} 28. Kf2 {[%clk 0:00:06]}  a5 {[%clk 0:00:03]} 29. Red1 {[%clk 0:00:05]}  b4 {[%clk 0:00:04]} 30. Ra6 {[%clk 0:00:03]}  bxc3 {[%clk 0:00:04]} 31. bxc3 {[%clk 0:00:04]}  Rd8 {[%clk 0:00:04]} 32. Rxd8 {[%clk 0:00:04]}  Rxd8 {[%clk 0:00:05]} 33. Bd4 {[%clk 0:00:04]}  Re8 {[%clk 0:00:05]} 34. Rxa5 {[%clk 0:00:05]}  Bg6 {[%clk 0:00:05]} 35. Re5 {[%clk 0:00:05]}  Ra8 {[%clk 0:00:05]} 36. Re2 {[%clk 0:00:05]}  Bd3 {[%clk 0:00:04]} 37. Re7 {[%clk 0:00:05]}  Rxa2+ {[%clk 0:00:04]} 38. Kg3 {[%clk 0:00:05]}  g5 {[%clk 0:00:03]} 39. Rg7+ {[%clk 0:00:06]}  Kf8 {[%clk 0:00:03]} 40. Rc7 {[%clk 0:00:04]}  Bf1 {[%clk 0:00:04]} 41. Bg7+ {[%clk 0:00:04]}  Kg8 {[%clk 0:00:04]} 42. f4 {[%clk 0:00:02]}  Rxg2+ {[%clk 0:00:04]} 43. Kf3 {[%clk 0:00:03]}  g4+ {[%clk 0:00:03]} 44. Ke4 {[%clk 0:00:02]}  Rxh2 {[%clk 0:00:04]} 45. Be5 {[%clk 0:00:02]}  Bd3+ {[%clk 0:00:04]} 46. Kd5 {[%clk 0:00:03]}  g3 {[%clk 0:00:05]} 47. f5 {[%clk 0:00:02]}  Re2 {[%clk 0:00:04]} 48. Bxg3 {[%clk 0:00:03]}  Re3 {[%clk 0:00:05]} 49. Be5 {[%clk 0:00:03]}  Rf3 {[%clk 0:00:05]} 50. f6 {[%clk 0:00:02]}  Kf8 {[%clk 0:00:05]} 51. Bd4 {[%clk 0:00:03]}  Rf5+ {[%clk 0:00:05]} 52. Ke6 {[%clk 0:00:03]}  Rf3 {[%clk 0:00:05]} 53. Rc8# {[%clk 0:00:03]} 1-0


[Site "https://www.chess.com"]

[Event "Titled Tuesday Blitz October 31 Early 2023"]
[White "Jimenez Fernandez, Rebeca"]
[Black "Kahlert, Thomas"]
[WhiteFideId "32070934"]
[BlackFideId "4625242"]
[WhiteElo "2211"]
[BlackElo "2400"]
[Result "1-0"]
[Round "3"]
[TimeControl "180+1"]
[Date "2023.10.31"]
[WhiteClock "0:00:35"]
[BlackClock "0:01:30"]
[Board "174"]

1. e4 {[%clk 0:03:00]}  e5 {[%clk 0:02:52]} 2. d4 {[%clk 0:03:00]}  exd4 {[%clk 0:02:52]} 3. Qxd4 {[%clk 0:03:01]}  Nc6 {[%clk 0:02:51]} 4. Qe3 {[%clk 0:03:01]}  g6 {[%clk 0:02:51]} 5. Nc3 {[%clk 0:03:02]}  Bg7 {[%clk 0:02:51]} 6. Bd2 {[%clk 0:03:02]}  Nge7 {[%clk 0:02:51]} 7. O-O-O {[%clk 0:03:03]}  O-O {[%clk 0:02:51]} 8. h4 {[%clk 0:03:02]}  h5 {[%clk 0:02:50]} 9. g4 {[%clk 0:03:02]}  hxg4 {[%clk 0:02:49]} 10. h5 {[%clk 0:03:02]}  d5 {[%clk 0:02:49]} 11. exd5 {[%clk 0:02:52]}  Nxd5 {[%clk 0:02:49]} 12. Nxd5 {[%clk 0:02:49]}  Qxd5 {[%clk 0:02:49]} 13. Bc3 {[%clk 0:02:38]}  Qe6 {[%clk 0:02:48]} 14. Qg3 {[%clk 0:02:20]}  Bxc3 {[%clk 0:02:14]} 15. Qxc3 {[%clk 0:02:20]}  g5 {[%clk 0:02:14]} 16. h6 {[%clk 0:02:17]}  Qe5 {[%clk 0:02:10]} 17. Qa3 {[%clk 0:01:28]}  Bf5 {[%clk 0:02:05]} 18. Bd3 {[%clk 0:01:14]}  Rad8 {[%clk 0:02:00]} 19. h7+ {[%clk 0:01:03]}  Kg7 {[%clk 0:01:57]} 20. Bxf5 {[%clk 0:00:51]}  Rxd1+ {[%clk 0:01:55]} 21. Kxd1 {[%clk 0:00:51]}  Qxf5 {[%clk 0:01:54]} 22. Qxf8+ {[%clk 0:00:51]}  Kxf8 {[%clk 0:01:50]} 23. h8=Q+ {[%clk 0:00:52]}  Ke7 {[%clk 0:01:51]} 24. Ne2 {[%clk 0:00:43]}  Qxf2 {[%clk 0:01:41]} 25. Re1 {[%clk 0:00:38]}  g3 {[%clk 0:01:37]} 26. Nxg3+ {[%clk 0:00:36]}  Kd6 {[%clk 0:01:30]} 27. Ne4+ {[%clk 0:00:35]} 1-0


[Site "https://www.chess.com"]

[Event "Titled Tuesday Blitz October 31 Early 2023"]
[White "Hoffmann, Asa"]
[Black "Pinales Roussel, Gabriel"]
[WhiteFideId "2001470"]
[BlackFideId "3101762"]
[WhiteElo "2394"]
[BlackElo "2186"]
[Result "1-0"]
[Round "3"]
[TimeControl "180+1"]
[Date "2023.10.31"]
[WhiteClock "0:01:51"]
[BlackClock "0:01:20"]
[Board "176"]

1. d4 {[%clk 0:02:56]}  d5 {[%clk 0:02:59]} 2. Bg5 {[%clk 0:02:55]}  c5 {[%clk 0:02:57]} 3. dxc5 {[%clk 0:02:54]}  Qa5+ {[%clk 0:02:54]} 4. Nc3 {[%clk 0:02:51]}  Qxc5 {[%clk 0:02:55]} 5. Qxd5 {[%clk 0:02:50]}  Qb6 {[%clk 0:02:34]} 6. O-O-O {[%clk 0:02:42]}  Be6 {[%clk 0:02:32]} 7. Qb5+ {[%clk 0:02:41]}  Nc6 {[%clk 0:02:31]} 8. Qxb6 {[%clk 0:02:30]}  axb6 {[%clk 0:02:32]} 9. a3 {[%clk 0:02:31]}  Bc4 {[%clk 0:02:04]} 10. Nf3 {[%clk 0:02:26]}  f6 {[%clk 0:01:56]} 11. Bh4 {[%clk 0:02:24]}  e5 {[%clk 0:01:56]} 12. e4 {[%clk 0:02:23]}  Bxf1 {[%clk 0:01:47]} 13. Rhxf1 {[%clk 0:02:23]}  Bc5 {[%clk 0:01:47]} 14. Nd5 {[%clk 0:02:20]}  Nge7 {[%clk 0:01:47]} 15. Nc7+ {[%clk 0:02:19]}  Kf7 {[%clk 0:01:46]} 16. Nxa8 {[%clk 0:02:18]}  Rxa8 {[%clk 0:01:47]} 17. g4 {[%clk 0:02:09]}  Ke6 {[%clk 0:01:32]} 18. c3 {[%clk 0:02:07]}  b5 {[%clk 0:01:32]} 19. g5 {[%clk 0:02:04]}  Na5 {[%clk 0:01:31]} 20. Kc2 {[%clk 0:02:03]}  Nc4 {[%clk 0:01:27]} 21. gxf6 {[%clk 0:02:00]}  gxf6 {[%clk 0:01:27]} 22. Nd2 {[%clk 0:02:01]}  Nd6 {[%clk 0:01:23]} 23. f4 {[%clk 0:01:58]}  Nc6 {[%clk 0:01:22]} 24. Nb3 {[%clk 0:01:55]}  Bb6 {[%clk 0:01:20]} 25. Bxf6 {[%clk 0:01:51]} 1-0


[Site "https://www.chess.com"]

[Event "Titled Tuesday Blitz October 31 Early 2023"]
[White "Mirzanurov, Bulat"]
[Black "Jackalhead_Anubis"]
[WhiteFideId "4184521"]
[WhiteElo "2183"]
[BlackElo "2390"]
[Result "0-1"]
[Round "3"]
[TimeControl "180+1"]
[Date "2023.10.31"]
[WhiteClock "0:00:00"]
[BlackClock "0:00:20"]
[Board "178"]

1. e4 {[%clk 0:03:00]}  e5 {[%clk 0:02:58]} 2. Nf3 {[%clk 0:02:55]}  Nc6 {[%clk 0:02:58]} 3. Bb5 {[%clk 0:02:54]}  Nf6 {[%clk 0:02:57]} 4. O-O {[%clk 0:02:53]}  Nxe4 {[%clk 0:02:55]} 5. Re1 {[%clk 0:02:51]}  Nd6 {[%clk 0:02:55]} 6. a4 {[%clk 0:02:50]}  Be7 {[%clk 0:02:46]} 7. Nc3 {[%clk 0:02:48]}  O-O {[%clk 0:02:43]} 8. d4 {[%clk 0:02:48]}  Nxb5 {[%clk 0:02:26]} 9. axb5 {[%clk 0:02:31]}  Nxd4 {[%clk 0:02:25]} 10. Nxd4 {[%clk 0:02:30]}  exd4 {[%clk 0:02:25]} 11. Nd5 {[%clk 0:02:26]}  Bf6 {[%clk 0:01:57]} 12. Bf4 {[%clk 0:02:18]}  d6 {[%clk 0:01:57]} 13. b6 {[%clk 0:02:01]}  cxb6 {[%clk 0:01:49]} 14. Ra4 {[%clk 0:01:41]}  Bf5 {[%clk 0:01:25]} 15. Nxf6+ {[%clk 0:01:34]}  Qxf6 {[%clk 0:01:26]} 16. Rxd4 {[%clk 0:01:26]}  Bxc2 {[%clk 0:01:25]} 17. Qd2 {[%clk 0:01:26]}  Rfe8 {[%clk 0:01:22]} 18. Rc1 {[%clk 0:01:16]}  Bg6 {[%clk 0:01:12]} 19. Rxd6 {[%clk 0:01:12]}  Qe7 {[%clk 0:00:58]} 20. h3 {[%clk 0:01:03]}  Rad8 {[%clk 0:00:53]} 21. Rxd8 {[%clk 0:00:27]}  Rxd8 {[%clk 0:00:54]} 22. Qc3 {[%clk 0:00:24]}  h6 {[%clk 0:00:51]} 23. Re1 {[%clk 0:00:22]}  Qd7 {[%clk 0:00:47]} 24. Kh2 {[%clk 0:00:16]}  Qd4 {[%clk 0:00:44]} 25. Qc7 {[%clk 0:00:14]}  Rd7 {[%clk 0:00:43]} 26. Qb8+ {[%clk 0:00:10]}  Kh7 {[%clk 0:00:39]} 27. Re8 {[%clk 0:00:09]}  Bf5 {[%clk 0:00:31]} 28. Be5 {[%clk 0:00:05]}  Qxf2 {[%clk 0:00:27]} 29. Rh8+ {[%clk 0:00:05]}  Kg6 {[%clk 0:00:27]} 30. Qg8 {[%clk 0:00:01]}  f6 {[%clk 0:00:25]} 31. Qh7+ {[%clk 0:00:01]}  Kg5 {[%clk 0:00:24]} 32. Bxf6+ {[%clk 0:00:01]}  Kxf6 {[%clk 0:00:19]} 33. Rf8+ {[%clk 0:00:00]}  Kg5 {[%clk 0:00:20]} 0-1


[Site "https://www.chess.com"]

[Event "Titled Tuesday Blitz October 31 Early 2023"]
[White "Lebedev, Artem S."]
[Black "Fernandez Hernandez, Gerardo"]
[WhiteFideId "34272747"]
[BlackFideId "2207400"]
[WhiteElo "2384"]
[BlackElo "2155"]
[Result "1-0"]
[Round "3"]
[TimeControl "180+1"]
[Date "2023.10.31"]
[WhiteClock "0:00:04"]
[BlackClock "0:00:00"]
[Board "181"]

1. e4 {[%clk 0:03:00]}  e6 {[%clk 0:03:00]} 2. d4 {[%clk 0:02:45]}  d5 {[%clk 0:03:00]} 3. Nc3 {[%clk 0:02:46]}  Nc6 {[%clk 0:03:00]} 4. Nf3 {[%clk 0:02:38]}  Nf6 {[%clk 0:02:59]} 5. e5 {[%clk 0:02:33]}  Ne4 {[%clk 0:02:59]} 6. Bd3 {[%clk 0:02:32]}  Bb4 {[%clk 0:02:59]} 7. Bd2 {[%clk 0:02:11]}  Nxd2 {[%clk 0:03:00]} 8. Qxd2 {[%clk 0:02:12]}  f6 {[%clk 0:03:00]} 9. O-O-O {[%clk 0:02:09]}  fxe5 {[%clk 0:02:26]} 10. Nxe5 {[%clk 0:02:05]}  Nxe5 {[%clk 0:02:21]} 11. dxe5 {[%clk 0:02:06]}  O-O {[%clk 0:02:20]} 12. Qe3 {[%clk 0:01:44]}  d4 {[%clk 0:01:55]} 13. Bxh7+ {[%clk 0:01:04]}  Kxh7 {[%clk 0:01:45]} 14. Rxd4 {[%clk 0:01:03]}  Qe7 {[%clk 0:01:13]} 15. Qe4+ {[%clk 0:01:03]}  Kg8 {[%clk 0:01:01]} 16. Rxb4 {[%clk 0:01:03]}  c5 {[%clk 0:00:46]} 17. Rc4 {[%clk 0:01:01]}  b5 {[%clk 0:00:43]} 18. Nxb5 {[%clk 0:00:32]}  Bb7 {[%clk 0:00:30]} 19. Qe3 {[%clk 0:00:32]}  Bd5 {[%clk 0:00:27]} 20. Rxc5 {[%clk 0:00:27]}  Rac8 {[%clk 0:00:17]} 21. Rxc8 {[%clk 0:00:25]}  Rxc8 {[%clk 0:00:18]} 22. Nd6 {[%clk 0:00:25]}  Rc7 {[%clk 0:00:13]} 23. Kb1 {[%clk 0:00:24]}  a5 {[%clk 0:00:10]} 24. Rd1 {[%clk 0:00:18]}  a4 {[%clk 0:00:09]} 25. a3 {[%clk 0:00:16]}  Qd7 {[%clk 0:00:06]} 26. Qd3 {[%clk 0:00:09]}  Qc6 {[%clk 0:00:05]} 27. Qg6 {[%clk 0:00:07]}  Be4 {[%clk 0:00:04]} 28. Qxe4 {[%clk 0:00:06]}  Qc5 {[%clk 0:00:00]} 29. Qg6 {[%clk 0:00:04]} 1-0


[Site "https://www.chess.com"]

[Event "Titled Tuesday Blitz October 31 Early 2023"]
[White "LiadCuba"]
[Black "Lorenzo De La Riva, Lazaro"]
[BlackFideId "2268809"]
[WhiteElo "2358"]
[BlackElo "2102"]
[Result "1-0"]
[Round "3"]
[TimeControl "180+1"]
[Date "2023.10.31"]
[WhiteClock "0:00:33"]
[BlackClock "0:00:12"]
[Board "187"]

1. d4 {[%clk 0:02:59]}  Nf6 {[%clk 0:01:51]} 2. c4 {[%clk 0:02:59]}  a6 {[%clk 0:01:44]} 3. Nc3 {[%clk 0:02:57]}  c5 {[%clk 0:01:45]} 4. d5 {[%clk 0:02:57]}  b5 {[%clk 0:01:45]} 5. cxb5 {[%clk 0:02:49]}  axb5 {[%clk 0:01:46]} 6. Nxb5 {[%clk 0:02:49]}  Qa5+ {[%clk 0:01:46]} 7. Nc3 {[%clk 0:02:50]}  Bb7 {[%clk 0:01:45]} 8. Bd2 {[%clk 0:02:46]}  Qb6 {[%clk 0:01:45]} 9. e4 {[%clk 0:02:43]}  e6 {[%clk 0:01:43]} 10. dxe6 {[%clk 0:02:34]}  fxe6 {[%clk 0:01:44]} 11. Qc2 {[%clk 0:02:34]}  Nc6 {[%clk 0:01:42]} 12. Nf3 {[%clk 0:02:31]}  Nb4 {[%clk 0:01:40]} 13. Qb1 {[%clk 0:02:30]}  d5 {[%clk 0:01:38]} 14. a3 {[%clk 0:02:26]}  dxe4 {[%clk 0:01:34]} 15. Ng5 {[%clk 0:02:25]}  Nbd5 {[%clk 0:01:14]} 16. Ngxe4 {[%clk 0:02:20]}  Be7 {[%clk 0:01:09]} 17. Bb5+ {[%clk 0:02:18]}  Kf8 {[%clk 0:01:01]} 18. Nxf6 {[%clk 0:02:04]}  Bxf6 {[%clk 0:01:00]} 19. O-O {[%clk 0:01:59]}  h5 {[%clk 0:00:51]} 20. a4 {[%clk 0:01:52]}  h4 {[%clk 0:00:40]} 21. h3 {[%clk 0:01:52]}  Qc7 {[%clk 0:00:35]} 22. Qg6 {[%clk 0:01:32]}  Ne7 {[%clk 0:00:34]} 23. Qg4 {[%clk 0:01:31]}  Nf5 {[%clk 0:00:30]} 24. Ne4 {[%clk 0:01:21]}  Bd4 {[%clk 0:00:25]} 25. Ng5 {[%clk 0:01:15]}  Bd5 {[%clk 0:00:21]} 26. Bc3 {[%clk 0:01:08]}  Rh6 {[%clk 0:00:20]} 27. Rac1 {[%clk 0:01:01]}  Rg6 {[%clk 0:00:19]} 28. Bxd4 {[%clk 0:01:01]}  Nxd4 {[%clk 0:00:19]} 29. f4 {[%clk 0:00:52]}  Nf5 {[%clk 0:00:16]} 30. b4 {[%clk 0:00:51]}  Ne3 {[%clk 0:00:15]} 31. Qxh4 {[%clk 0:00:50]}  Nxf1 {[%clk 0:00:11]} 32. Rxf1 {[%clk 0:00:49]}  cxb4 {[%clk 0:00:11]} 33. f5 {[%clk 0:00:48]}  Qc5+ {[%clk 0:00:10]} 34. Kh1 {[%clk 0:00:46]}  Rf6 {[%clk 0:00:08]} 35. Nh7+ {[%clk 0:00:43]}  Ke7 {[%clk 0:00:08]} 36. Nxf6 {[%clk 0:00:43]}  gxf6 {[%clk 0:00:09]} 37. fxe6 {[%clk 0:00:43]}  Qc2 {[%clk 0:00:08]} 38. Qxf6+ {[%clk 0:00:42]}  Kd6 {[%clk 0:00:08]} 39. e7+ {[%clk 0:00:40]}  Kc7 {[%clk 0:00:09]} 40. Qe5+ {[%clk 0:00:39]}  Kb6 {[%clk 0:00:08]} 41. Qxd5 {[%clk 0:00:38]}  Rg8 {[%clk 0:00:09]} 42. Qxg8 {[%clk 0:00:38]}  b3 {[%clk 0:00:08]} 43. Qd8+ {[%clk 0:00:36]}  Kc5 {[%clk 0:00:07]} 44. Qc7+ {[%clk 0:00:35]}  Kb4 {[%clk 0:00:08]} 45. Qxc2 {[%clk 0:00:35]}  bxc2 {[%clk 0:00:09]} 46. e8=Q {[%clk 0:00:35]}  c1=Q {[%clk 0:00:10]} 47. Rxc1 {[%clk 0:00:35]}  Ka5 {[%clk 0:00:10]} 48. Qe1+ {[%clk 0:00:35]}  Kb6 {[%clk 0:00:11]} 49. Qb4 {[%clk 0:00:34]}  Ka7 {[%clk 0:00:11]} 50. Qa5+ {[%clk 0:00:33]}  Kb8 {[%clk 0:00:11]} 51. Qb6+ {[%clk 0:00:33]}  Ka8 {[%clk 0:00:12]} 52. Bc6# {[%clk 0:00:33]} 1-0


[Site "https://www.chess.com"]

[Event "Titled Tuesday Blitz October 31 Early 2023"]
[White "Diaz, Fernando"]
[Black "Castillo Pena, Patricia Evarista"]
[WhiteFideId "3701255"]
[BlackFideId "6412106"]
[WhiteElo "2347"]
[BlackElo "2053"]
[Result "1/2-1/2"]
[Round "3"]
[TimeControl "180+1"]
[Date "2023.10.31"]
[WhiteClock "0:00:19"]
[BlackClock "0:00:47"]
[Board "189"]

1. e4 {[%clk 0:00:47]}  c5 {[%clk 0:02:56]} 2. d4 {[%clk 0:00:47]}  cxd4 {[%clk 0:02:56]} 3. c3 {[%clk 0:00:48]}  dxc3 {[%clk 0:02:57]} 4. Nxc3 {[%clk 0:00:49]}  Nc6 {[%clk 0:02:57]} 5. Bc4 {[%clk 0:00:48]}  e6 {[%clk 0:02:57]} 6. Nf3 {[%clk 0:00:49]}  Bb4 {[%clk 0:02:56]} 7. O-O {[%clk 0:00:49]}  Nge7 {[%clk 0:02:56]} 8. Qe2 {[%clk 0:00:49]}  O-O {[%clk 0:02:56]} 9. Bf4 {[%clk 0:00:50]}  a6 {[%clk 0:02:50]} 10. Rac1 {[%clk 0:00:48]}  b5 {[%clk 0:02:49]} 11. Bb3 {[%clk 0:00:49]}  Na5 {[%clk 0:02:38]} 12. Rfd1 {[%clk 0:00:48]}  Bb7 {[%clk 0:02:35]} 13. h4 {[%clk 0:00:46]}  Rc8 {[%clk 0:02:27]} 14. Ng5 {[%clk 0:00:44]}  Nxb3 {[%clk 0:02:20]} 15. axb3 {[%clk 0:00:44]}  h6 {[%clk 0:02:18]} 16. Nf3 {[%clk 0:00:42]}  Ng6 {[%clk 0:02:14]} 17. Bg3 {[%clk 0:00:41]}  d5 {[%clk 0:02:06]} 18. exd5 {[%clk 0:00:41]}  exd5 {[%clk 0:02:06]} 19. h5 {[%clk 0:00:41]}  Re8 {[%clk 0:02:04]} 20. Qd3 {[%clk 0:00:41]}  Nf8 {[%clk 0:01:59]} 21. Qf5 {[%clk 0:00:37]}  Bxc3 {[%clk 0:01:52]} 22. bxc3 {[%clk 0:00:36]}  Qd7 {[%clk 0:01:46]} 23. Qf4 {[%clk 0:00:35]}  Ne6 {[%clk 0:01:43]} 24. Qh4 {[%clk 0:00:34]}  Qe7 {[%clk 0:01:43]} 25. Qg4 {[%clk 0:00:33]}  Rcd8 {[%clk 0:01:36]} 26. Be5 {[%clk 0:00:29]}  Bc8 {[%clk 0:01:28]} 27. Qg3 {[%clk 0:00:28]}  Ng5 {[%clk 0:01:23]} 28. Bd4 {[%clk 0:00:22]}  Nxf3+ {[%clk 0:01:19]} 29. Qxf3 {[%clk 0:00:22]}  Qg5 {[%clk 0:01:15]} 30. Re1 {[%clk 0:00:20]}  Bg4 {[%clk 0:01:11]} 31. Qg3 {[%clk 0:00:19]}  Bxh5 {[%clk 0:01:02]} 32. Qc7 {[%clk 0:00:20]}  Rxe1+ {[%clk 0:01:00]} 33. Rxe1 {[%clk 0:00:21]}  Rf8 {[%clk 0:00:54]} 34. Re5 {[%clk 0:00:21]}  Qc1+ {[%clk 0:00:54]} 35. Kh2 {[%clk 0:00:21]}  Bg6 {[%clk 0:00:52]} 36. Re3 {[%clk 0:00:19]}  Qc2 {[%clk 0:00:50]} 37. b4 {[%clk 0:00:18]}  Qf5 {[%clk 0:00:50]} 38. Rg3 {[%clk 0:00:18]}  Qh5+ {[%clk 0:00:50]} 39. Kg1 {[%clk 0:00:18]}  Qd1+ {[%clk 0:00:50]} 40. Kh2 {[%clk 0:00:19]}  Qh5+ {[%clk 0:00:50]} 41. Rh3 {[%clk 0:00:19]}  Qe2 {[%clk 0:00:47]} 42. Rg3 {[%clk 0:00:19]}  Qh5+ {[%clk 0:00:47]} 1/2-1/2


[Site "https://www.chess.com"]

[Event "Titled Tuesday Blitz October 31 Early 2023"]
[White "TomLiu777"]
[Black "Sailer, Mike"]
[BlackFideId "2012901"]
[WhiteElo "2326"]
[BlackElo "2038"]
[Result "0-1"]
[Round "3"]
[TimeControl "180+1"]
[Date "2023.10.31"]
[WhiteClock "0:01:26"]
[BlackClock "0:02:01"]
[Board "191"]

1. e4 {[%clk 0:02:52]}  g6 {[%clk 0:02:59]} 2. h4 {[%clk 0:02:51]}  h5 {[%clk 0:02:58]} 3. g4 {[%clk 0:02:50]}  hxg4 {[%clk 0:02:57]} 4. Be2 {[%clk 0:02:51]}  d6 {[%clk 0:02:39]} 5. Bxg4 {[%clk 0:01:58]}  Bxg4 {[%clk 0:02:33]} 6. Qxg4 {[%clk 0:01:48]}  Nf6 {[%clk 0:02:33]} 7. Qg2 {[%clk 0:01:39]}  Nc6 {[%clk 0:02:25]} 8. Nc3 {[%clk 0:01:33]}  Qd7 {[%clk 0:02:22]} 9. d3 {[%clk 0:01:32]}  Bg7 {[%clk 0:02:15]} 10. Bd2 {[%clk 0:01:25]}  O-O-O {[%clk 0:02:13]} 11. O-O-O {[%clk 0:01:26]}  Qg4 {[%clk 0:02:09]} 12. Nge2 {[%clk 0:01:26]}  Qxg2 {[%clk 0:02:01]} 0-1


[Site "https://www.chess.com"]

[Event "Titled Tuesday Blitz October 31 Early 2023"]
[White "ivana_999"]
[Black "Szente Varga, Fruzsina"]
[BlackFideId "712264"]
[WhiteElo "2029"]
[BlackElo "2326"]
[Result "0-1"]
[Round "3"]
[TimeControl "180+1"]
[Date "2023.10.31"]
[WhiteClock "0:00:00"]
[BlackClock "0:00:17"]
[Board "192"]

1. d4 {[%clk 0:02:57]}  Nf6 {[%clk 0:02:43]} 2. c4 {[%clk 0:02:57]}  g6 {[%clk 0:02:37]} 3. Nc3 {[%clk 0:02:57]}  Bg7 {[%clk 0:02:37]} 4. e4 {[%clk 0:02:58]}  d6 {[%clk 0:02:31]} 5. f4 {[%clk 0:02:58]}  O-O {[%clk 0:02:31]} 6. Nf3 {[%clk 0:02:57]}  c5 {[%clk 0:02:31]} 7. d5 {[%clk 0:02:58]}  e6 {[%clk 0:02:25]} 8. Be2 {[%clk 0:02:57]}  exd5 {[%clk 0:02:25]} 9. cxd5 {[%clk 0:02:58]}  Re8 {[%clk 0:02:25]} 10. e5 {[%clk 0:02:59]}  dxe5 {[%clk 0:02:23]} 11. fxe5 {[%clk 0:03:00]}  Ng4 {[%clk 0:02:24]} 12. e6 {[%clk 0:03:00]}  fxe6 {[%clk 0:02:22]} 13. d6 {[%clk 0:03:01]}  Ne5 {[%clk 0:02:16]} 14. O-O {[%clk 0:02:55]}  Nxf3+ {[%clk 0:02:11]} 15. Bxf3 {[%clk 0:02:52]}  Bd4+ {[%clk 0:02:11]} 16. Kh1 {[%clk 0:02:51]}  Qxd6 {[%clk 0:02:11]} 17. Ne4 {[%clk 0:02:51]}  Qc7 {[%clk 0:01:56]} 18. Bg4 {[%clk 0:02:28]}  Nc6 {[%clk 0:01:54]} 19. Bh6 {[%clk 0:02:27]}  Bd7 {[%clk 0:01:39]} 20. Qf3 {[%clk 0:02:17]}  Ne5 {[%clk 0:01:24]} 21. Nf6+ {[%clk 0:01:58]}  Kh8 {[%clk 0:01:24]} 22. Qg3 {[%clk 0:01:58]}  Rec8 {[%clk 0:01:11]} 23. Qh4 {[%clk 0:01:20]}  Bc6 {[%clk 0:00:38]} 24. Nh5 {[%clk 0:00:56]}  Nxg4 {[%clk 0:00:35]} 25. Qxg4 {[%clk 0:00:51]}  Bd5 {[%clk 0:00:30]} 26. Nf4 {[%clk 0:00:28]}  Bc4 {[%clk 0:00:25]} 27. Nxe6 {[%clk 0:00:24]}  Qd7 {[%clk 0:00:18]} 28. Qxd4+ {[%clk 0:00:02]}  cxd4 {[%clk 0:00:17]} 29. Bg7+ {[%clk 0:00:02]}  Kg8 {[%clk 0:00:17]} 30. Rf6 {[%clk 0:00:00]}  Bxe6 {[%clk 0:00:17]} 0-1


[Site "https://www.chess.com"]

[Event "Titled Tuesday Blitz October 31 Early 2023"]
[White "Der_Balak_3Halak"]
[Black "Ghosh, Chanchal Kumer"]
[BlackFideId "10201858"]
[WhiteElo "2319"]
[BlackElo "1954"]
[Result "1-0"]
[Round "3"]
[TimeControl "180+1"]
[Date "2023.10.31"]
[WhiteClock "0:01:32"]
[BlackClock "0:00:00"]
[Board "194"]

1. e3 {[%clk 0:02:56]}  c5 {[%clk 0:02:58]} 2. d4 {[%clk 0:02:56]}  cxd4 {[%clk 0:02:58]} 3. exd4 {[%clk 0:02:57]}  d6 {[%clk 0:02:59]} 4. c4 {[%clk 0:02:56]}  Nf6 {[%clk 0:02:59]} 5. Nc3 {[%clk 0:02:55]}  e6 {[%clk 0:02:58]} 6. Nf3 {[%clk 0:02:54]}  Be7 {[%clk 0:02:57]} 7. Be3 {[%clk 0:02:53]}  Qc7 {[%clk 0:02:57]} 8. Rc1 {[%clk 0:02:50]}  b6 {[%clk 0:02:53]} 9. Bf4 {[%clk 0:02:48]}  Bb7 {[%clk 0:02:51]} 10. Nb5 {[%clk 0:02:47]}  Qd8 {[%clk 0:02:50]} 11. Be2 {[%clk 0:02:43]}  O-O {[%clk 0:02:49]} 12. O-O {[%clk 0:02:42]}  a6 {[%clk 0:02:46]} 13. Nc3 {[%clk 0:02:43]}  Nc6 {[%clk 0:02:46]} 14. d5 {[%clk 0:02:42]}  exd5 {[%clk 0:02:25]} 15. cxd5 {[%clk 0:02:43]}  Nb8 {[%clk 0:02:18]} 16. Qd4 {[%clk 0:02:37]}  Nbd7 {[%clk 0:02:16]} 17. Bd3 {[%clk 0:02:34]}  b5 {[%clk 0:02:11]} 18. b4 {[%clk 0:02:26]}  Rc8 {[%clk 0:02:09]} 19. Rfe1 {[%clk 0:02:13]}  Nb6 {[%clk 0:02:01]} 20. Rxe7 {[%clk 0:02:02]}  Qxe7 {[%clk 0:01:15]} 21. Qxb6 {[%clk 0:02:01]}  Nxd5 {[%clk 0:01:11]} 22. Nxd5 {[%clk 0:02:00]}  Rxc1+ {[%clk 0:01:10]} 23. Bxc1 {[%clk 0:02:01]}  Bxd5 {[%clk 0:01:06]} 24. Qe3 {[%clk 0:01:54]}  Qf6 {[%clk 0:00:37]} 25. Qd4 {[%clk 0:01:47]}  Qe6 {[%clk 0:00:27]} 26. Bxh7+ {[%clk 0:01:44]}  Kh8 {[%clk 0:00:21]} 27. Bb2 {[%clk 0:01:43]}  f6 {[%clk 0:00:19]} 28. Bd3 {[%clk 0:01:36]}  Bxf3 {[%clk 0:00:17]} 29. gxf3 {[%clk 0:01:34]}  Re8 {[%clk 0:00:14]} 30. Qh4+ {[%clk 0:01:34]}  Kg8 {[%clk 0:00:14]} 31. Bg6 {[%clk 0:01:31]}  Rc8 {[%clk 0:00:11]} 32. Qh7+ {[%clk 0:01:29]}  Kf8 {[%clk 0:00:11]} 33. Qh8+ {[%clk 0:01:30]}  Ke7 {[%clk 0:00:10]} 34. Qxg7+ {[%clk 0:01:31]}  Kd8 {[%clk 0:00:00]} 35. Bxf6+ {[%clk 0:01:32]} 1-0


[Site "https://www.chess.com"]